Cogmind - Beta 12 @@@ ROGUE MODE // 2023.05.15 @ 21:58:33 Player: Mr Goldstein Result: Self-destructed Performance ------------- Evolutions (3) 1500 Regions Visited (5) 1000 Robots Destroyed (0) 0 Value Destroyed (0) 0 Prototype IDs (2) 40 Alien Tech Used (0) 0 Bonus (470) 470 TOTAL SCORE: 3010 Bonus ------- Pacifist 470 Cogmind --------- Core Integrity 642/700 Matter 250/300 Energy 100/100 System Corruption 0% Temperature Cool (1) Movement Flying (40) Location -7/Factory Parts ------- > --- POWER (1) -------- (None) > --- PROPULSION (5) --- Xenon Bombardment Thruster > --- UTILITY (5) ------ Armored Scrap Engine Advanced Terrain Scan Processor > --- WEAPON (2) ------- (None) > --- INVENTORY (5) ---- Nuclear Core Hardened Medium Armor Plating Improved Medium Armor Plating Authchip [Processor] Authchip [Processor] Peak State ------------ > --- POWER ------------ (None) > --- PROPULSION ------- Xenon Bombardment Thruster > --- UTILITY ---------- Armored Scrap Engine Advanced Terrain Scan Processor > --- WEAPON ----------- (None) > --- INVENTORY -------- Nuclear Core Hardened Medium Armor Plating Improved Medium Armor Plating Authchip [Processor] Authchip [Processor] [Rating: 27] Favorites ----------- Power None Propulsion Xenon Bombardment Thruster Flight Unit Xenon Bombardment Thruster Utility Scrap Engine Device Scrap Engine Processor Advanced Terrain Scan Processor Weapon Advanced Beam Cannon Energy Gun Improved Medium Laser Energy Cannon Advanced Beam Cannon Build | -11 -10 -9 -9 -9 -7 ------- Run | Jun Mat Mat Sto Rec Fac Slots Evolved 6 | . . 2 . . 4 Power . | . . . . . . Propulsion 3 | . . 1 . . 2 Utility 3 | . . 1 . . 2 Weapon . | . . . . . . Parts Attached 5 | . . . 2 1 2 Power . | . . . . . . Engine . | . . . . . . Core . | . . . . . . Reactor . | . . . . . . Propulsion 1 | . . . . . 1 Treads . | . . . . . . Leg . | . . . . . . Wheel . | . . . . . . Hover . | . . . . . . Flight 1 | . . . . . 1 Utility 2 | . . . . 1 1 Device 1 | . . . . 1 . Storage . | . . . . . . Processor 1 | . . . . . 1 Hackware . | . . . . . . Protection . | . . . . . . Artifact . | . . . . . . Weapon 2 | . . . 2 . . Energy Gun 1 | . . . 1 . . Energy Cannon 1 | . . . 1 . . Ballistic Gun . | . . . . . . Ballistic Cannon . | . . . . . . Launcher . | . . . . . . Special Weapon . | . . . . . . Impact Weapon . | . . . . . . Slashing Weapon . | . . . . . . Piercing Weapon . | . . . . . . Special Melee Weapon . | . . . . . . Unidentified Prototypes 2 | . . . 2 . . Parts Lost . | . . . . . . Power . | . . . . . . Propulsion . | . . . . . . Utility . | . . . . . . Weapon . | . . . . . . Highest Loss Streak . | . . . . . . To Critical Strikes . | . . . . . . Average Slot Usage (%) 9 | . . . . 10 15 Flight 2 | . . . . . 6 Device 6 | . . . . 10 7 Naked Turns 116 | . 60 14 38 4 . Heaviest Build 4 | . . . 4 1 1 Greatest Support 6 | 3 3 3 3 3 6 Greatest Overweight (x) 1 | . . . 1 . . Average Overweight (x) . | . . . . . . Largest Inventory Capacity 5 | 5 5 5 5 5 5 Average Capacity 5 | 5 5 5 5 5 5 Most Carried 5 | . . . . 2 5 Average Carried 1 | . . . . . 3 Final Capacity 5 | 5 5 5 5 5 5 Final Carried 5 | . . . . 2 5 Scrap Engine Consumption 1 | . . . . . 1 Class Distribution -------------------- 100% | Mutant Dominant Class ---------------- Mutant | -10/Materials Mutant | -9/Materials Mutant | -9/Storage Mutant | -9/Recycling Mutant | -7/Factory Resources | -11 -10 -9 -9 -9 -7 ----------- Run | Jun Mat Mat Sto Rec Fac Matter Collected 200 | 200 . . . . . Remotely . | . . . . . . Salvage Created . | . . . . . . Parts . | . . . . . . Haulers Intercepted . | . . . . . . Recyclers Shooed . | . . . . . . Parts Field Recycled . | . . . . . . Retrieved Matter . | . . . . . . Parts Self-Destructed . | . . . . . . Prevented . | . . . . . . Kills | -11 -10 -9 -9 -9 -7 ------- Run | Jun Mat Mat Sto Rec Fac Combat Hostiles Destroyed . | . . . . . . Classes Destroyed . | . . . . . . Best Kill Streak . | . . . . . . Combat Bots Only . | . . . . . . Max Kills in Single Turn . | . . . . . . Gunslinging . | . . . . . . Exploded . | . . . . . . Melee . | . . . . . . Uniques/NPCs Destroyed . | . . . . . . Combat | -11 -10 -9 -9 -9 -7 -------- Run | Jun Mat Mat Sto Rec Fac Damage Taken 184 | . 48 . . . 136 Core 106 | . 48 . . . 58 Absorbed by Shields 5 | . . . . . 5 Core Remaining (%) 93 | 100 80 . . 100 . Volleys Fired . | . . . . . . Largest . | . . . . . . Hottest . | . . . . . . Shots Fired . | . . . . . . Gun . | . . . . . . Cannon . | . . . . . . Launcher . | . . . . . . Special . | . . . . . . Kinetic . | . . . . . . Thermal . | . . . . . . Explosive . | . . . . . . Electromagnetic . | . . . . . . Robot Hit Streak . | . . . . . . Robot Miss Streak . | . . . . . . Penetration Max . | . . . . . . Secondary Targets . | . . . . . . Shots Hit Robots . | . . . . . . Core Hits . | . . . . . . Critical Kills . | . . . . . . Critical Parts Destroyed . | . . . . . . Critical Strikes . | . . . . . . Melee Attacks . | . . . . . . Impact . | . . . . . . Slashing . | . . . . . . Piercing . | . . . . . . Sneak Attacks . | . . . . . . Combat Hostiles . | . . . . . . Follow-up Attacks . | . . . . . . Damage Inflicted . | . . . . . . Guns . | . . . . . . Cannons . | . . . . . . Explosions . | . . . . . . Melee . | . . . . . . Ramming . | . . . . . . Kinetic . | . . . . . . Thermal . | . . . . . . Explosive . | . . . . . . Electromagnetic . | . . . . . . Impact . | . . . . . . Slashing . | . . . . . . Piercing . | . . . . . . Highest Corruption . | . . . . . . Average Corruption . | . . . . . . Corruption Purged . | . . . . . . Corruption Blocked . | . . . . . . Overload Shots . | . . . . . . Overflow Damage . | . . . . . . Projectiles . | . . . . . . Explosions . | . . . . . . Melee . | . . . . . . Knockbacks . | . . . . . . Impact . | . . . . . . Kinetic . | . . . . . . Secondary . | . . . . . . Self-Inflicted Damage . | . . . . . . Shots . | . . . . . . Rammed . | . . . . . . Targets Rammed . | . . . . . . Kicked . | . . . . . . Crushed . | . . . . . . Highest Temperature . | . . . . . . Average Temperature . | . . . . . . Received Heat Transfer 102 | . 27 . . . 75 Siege Activations . | . . . . . . Robots Corrupted . | . . . . . . Combat Hostiles . | . . . . . . Parts Fried . | . . . . . . Impact Corruptions . | . . . . . . Robots Melted . | . . . . . . Combat Hostiles . | . . . . . . Parts Melted . | . . . . . . Heat Transferred . | . . . . . . Parts Sabotaged . | . . . . . . Parts Stolen . | . . . . . . Parts Stripped . | . . . . . . Power Chain Reactions . | . . . . . . Missiles Intercepted . | . . . . . . Alert | -11 -10 -9 -9 -9 -7 ------- Run | Jun Mat Mat Sto Rec Fac Peak Influence 550 | . 15 5 47 228 550 Initial 445 | . . 5 1 18 445 Average 230 | . 2 5 13 139 469 Maximum Alert Level 2 | . . . . 1 2 Low Security (%) 56 | 100 100 100 100 87 . Level 1 3 | . . . . 12 . Level 2 39 | . . . . . 100 Level 3 . | . . . . . . Level 4 . | . . . . . . Level 5 . | . . . . . . High Security . | . . . . . . Max Security . | . . . . . . Squads Dispatched 5 | . . . 1 . 4 Investigation 5 | . . . 1 . 4 Extermination . | . . . . . . Reinforcement . | . . . . . . Assault . | . . . . . . Garrison . | . . . . . . Intercept . | . . . . . . Searches Triggered . | . . . . . . Construction Impeded . | . . . . . . Haulers Reinforced . | . . . . . . Active Scanning Responses . | . . . . . . Cargo Convoy Interrupts . | . . . . . . Stealth | -11 -10 -9 -9 -9 -7 --------- Run | Jun Mat Mat Sto Rec Fac Distress Signals . | . . . . . . Communications Jammed . | . . . . . . Distress Signals . | . . . . . . Times Spotted 14 | . 6 . 2 . 6 Peak Tracking Total 6 | . 6 . 2 . 2 Tactical Retreats 2 | . . . . . 2 Traps | -11 -10 -9 -9 -9 -7 ------- Run | Jun Mat Mat Sto Rec Fac Traps Triggered 1 | . . . . . 1 Indirectly . | . . . . . . Trap Hack Attempts . | . . . . . . Triggered . | . . . . . . Disarmed . | . . . . . . Reprogrammed . | . . . . . . Reused . | . . . . . . Traps Extracted . | . . . . . . Installed . | . . . . . . Triggered . | . . . . . . Machines | -11 -10 -9 -9 -9 -7 ---------- Run | Jun Mat Mat Sto Rec Fac Machines Disabled . | . . . . . . Max in Single Turn . | . . . . . . Machines Repaired . | . . . . . . Machines Sabotaged . | . . . . . . Overloaded Fab Kills . | . . . . . . Hacking | -11 -10 -9 -9 -9 -7 --------- Run | Jun Mat Mat Sto Rec Fac Machines Accessed 15 | . . . 3 7 5 Terminals 6 | . . . 3 . 3 Fabricators 1 | . . . . . 1 Repair Stations 1 | . . . . . 1 Recycling Units 7 | . . . . 7 . Scanalyzers . | . . . . . . Garrison Access . | . . . . . . Total Hacks 26 | . . . 5 8 13 Successful 11 | . . . 3 7 1 Failed 15 | . . . 2 1 12 Catastrophic 8 | . . . 2 . 6 Database Lockouts . | . . . . . . Manual 13 | . . . 2 8 3 Terminals 14 | . . . 5 . 9 Fabricators 1 | . . . . . 1 Repair Stations 3 | . . . . . 3 Recycling Units 8 | . . . . 8 . Scanalyzers . | . . . . . . Garrison Access . | . . . . . . Terminal Hacks 2 | . . . 2 . . Open Door 2 | . . . 2 . . Fabricator Hacks 1 | . . . . . 1 Network Status 1 | . . . . . 1 Repair Station Hacks . | . . . . . . Recycling Unit Hacks . | . . . . . . Scanalyzer . | . . . . . . Garrison Access Hacks . | . . . . . . Unauthorized Hacks 8 | . . . 1 7 . Terminals 1 | . . . 1 . . Disrupt 1 | . . . 1 . . Fabricators . | . . . . . . Repair Stations . | . . . . . . Recycling Units 7 | . . . . 7 . Tunnel 7 | . . . . 7 . Scanalyzers . | . . . . . . Garrison Access . | . . . . . . Data Cores Recovered . | . . . . . . Used . | . . . . . . Hacking Detections 8 | . . . 3 . 5 Full Trace Events 5 | . . . 1 . 4 Feedback Events . | . . . . . . Feedback Blocked . | . . . . . . Robot Schematics Acquired . | . . . . . . Robots Built . | . . . . . . Authchips . | . . . . . . Time . | . . . . . . Total Robot Build Rating . | . . . . . . Part Schematics Acquired . | . . . . . . Parts Built . | . . . . . . Authchips . | . . . . . . Time . | . . . . . . Total Part Build Rating . | . . . . . . Parts Repaired . | . . . . . . Time . | . . . . . . Parts Recycled . | . . . . . . Recycled Matter . | . . . . . . Retrieved Matter . | . . . . . . Retrieved Components . | . . . . . . Parts Scanalyzed . | . . . . . . Part Schematics Acquired . | . . . . . . Parts Damaged . | . . . . . . Bothacking | -11 -10 -9 -9 -9 -7 ------------ Run | Jun Mat Mat Sto Rec Fac Used RIF Installer . | . . . . . . Robots Hacked . | . . . . . . Non-combat . | . . . . . . Combat . | . . . . . . Robot Hacks Applied . | . . . . . . Relay Couplers Released . | . . . . . . Fabnet Peak Effective % . | . . . . . . Robots Rewired . | . . . . . . Allies Hacked . | . . . . . . Hacks Repelled . | . . . . . . Allies | -11 -10 -9 -9 -9 -7 -------- Run | Jun Mat Mat Sto Rec Fac Total Allies . | . . . . . . Largest Group . | . . . . . . Highest-Rated Group . | . . . . . . Highest-Rated Ally . | . . . . . . Total Orders . | . . . . . . Ally Attacks . | . . . . . . Total Damage . | . . . . . . Kills . | . . . . . . Allies Corrupted . | . . . . . . Allies Melted . | . . . . . . Intel | -11 -10 -9 -9 -9 -7 ------- Run | Jun Mat Mat Sto Rec Fac Robot Analysis Total . | . . . . . . Derelict Logs Recovered . | . . . . . . Drone Launches . | . . . . . . Drone Recoveries . | . . . . . . Exploration | -11 -10 -9 -9 -9 -7 ------------- Run | Jun Mat Mat Sto Rec Fac Turns Passed 424 | 11 60 14 43 128 168 Spaces Moved 845 | 21 119 27 78 248 352 Core 520 | 21 119 27 78 248 27 Treads . | . . . . . . Legs . | . . . . . . Wheels . | . . . . . . Hover . | . . . . . . Flight 325 | . . . . . 325 Fastest Speed 40 | 50 50 50 50 50 40 Average Speed 46 | 50 50 50 51 50 40 Slowest Speed 100 | 50 50 50 100 50 50 Overloaded Moves . | . . . . . . Propulsion Burnouts . | . . . . . . Robots Hopped 7 | . . . . . 7 Cave-ins Triggered . | . . . . . . Exploration Rate (%) 20 | 3 27 5 24 56 10 Regions Visited 5 Branch Regions 2 Pre-discovered Areas 7 | . . . . 7 . Known Exits Taken . | . . . . . . Unknown Exits Taken 5 | 1 1 1 1 1 . Scrap Searched . | . . . . . . Spaces Dug . | . . . . . . Terrain Destroyed . | . . . . . . Melee . | . . . . . . Projectile . | . . . . . . AOE . | . . . . . . Terrain Rammed . | . . . . . . Walls Destroyed . | . . . . . . Machines Disabled . | . . . . . . Actions | -11 -10 -9 -9 -9 -7 --------- Run | Jun Mat Mat Sto Rec Fac Total 861 | 20 118 26 79 250 368 Wait 1 | . . . . . 1 Move 826 | 20 118 26 77 247 338 Hop 7 | . . . . . 7 Pick Up 5 | . . . . 2 3 Fast Attach 5 | . . . 2 1 2 Attach . | . . . . . . Detach . | . . . . . . Swap . | . . . . . . Drop . | . . . . . . Fire . | . . . . . . Melee . | . . . . . . Ram . | . . . . . . Kick . | . . . . . . Crush . | . . . . . . Escape Stasis 17 | . . . . . 17 Rewire . | . . . . . . Trap . | . . . . . . Miscellaneous . | . . . . . . Route ------- -11/Junkyard -10/Materials -9/Materials -9/Storage -9/Recycling -7/Factory (discovered 1 exit: [*Fac]) History --------- Turn | Location | Event 4 | -11/Junkyard | Discovered new exit (range 15) 12 | -11/Junkyard | Entered Materials 64 | -10/Materials | Discovered new exit (range 16) 72 | -10/Materials | Entered another Materials area 72 | -9/Materials | Evolved 2 slots: Propulsion x1, Utility x1 81 | -9/Materials | Discovered new exit (range 11) 86 | -9/Materials | Entered Storage 97 | -9/Storage | Released all parts (2) 128 | -9/Storage | Used back door to open Recycling access 128 | -9/Storage | Discovered new exit (range 4) 129 | -9/Storage | Entered Recycling 133 | -9/Recycling | Found Scrap Engine 247 | -9/Recycling | Discovered new exit (range 12) 257 | -9/Recycling | Entered Factory 257 | -7/Factory | Evolved 4 slots: Propulsion x2, Utility x2 291 | -7/Factory | Discovered new exit (range 6) 312 | -7/Factory | Build established: Mutant 425 | -7/Factory | Self-destructed Last Messages --------------- 00359_ Field strength at 75. 00360_ Field strength at 70. 00361_ Field strength at 65. 00362_ Field strength at 60. 00363_ Field strength at 55. 00364_ Field strength at 50. 00365_ Field strength at 45. 00366_ Field strength at 40. 00367_ Field strength at 35. 00368_ Field strength at 30. 00369_ Field strength at 25. 00370_ Field strength at 20. 00371_ Field strength at 15. 00372_ Field strength at 10. 00373_ Stasis field depleted. 00375_ ALERT: All DSF locations entering lockdown mode. 00376_ Critical hit (Burn: +37). 00389_ Acquired Hrd. Medium Armor Plating. 00391_ Acquired Adv. Terrain Scan Processor. 00401_ Connecting with Terminal... Map ----- +----------------------------------------------------+ | ?????????????????????????????????????????????????? | | ?????????????????????????????????????????????????? | | ?????????????????????????????????????????????????? | | ?????????????????????????????????????????????????? | | ?????????????????????????????????????????????????? | | ?????????????????????????????????????????????????? | | ?????????????????????????????????????????????????? | | ?????????????????????????????????????????????????? | | ?????????????????????????????????????????????????? | | ???????????????????? ??????????????????????????? | | ?????????????????""" ??????????????????????????? | | ????????????????? ??????????????????????????? | | ????????????????? ??????????????????????????? | | ????????????????? ??????????????????????????? | | ?????????????????? ??????????????????????????? | | ?????????????????? ??????????????????????????? | | ?????????????????? ??????????????????????????? | | ??????????????????# #??????????????????????????? | | ??????????????????# ############???????????????? | | ??????????????????# # #???????????????? | | ??????????????????# # !! #???????????????? | | ??????????????????# # """ ! #???????????????? | | ????????????????### # """ #???????????????? | | ????????????????+ ^ # """ #???????????????? | | ??????????????????# + u #???????????????? | | ??????????????????# # @ #???????????????? | | ????????????????### ############???????????????? | | ??????#######+### #????????????????????????? | | ????? ###########??????????????? | | ????? ?????????????? | | ????? ?????????????? | | ????? ?????????????? | | ????? ###########??????????????? | | ??????########### #????????????????????????? | | ??????????????######+#######?????????????????????? | | ??????????????# #?????????????????????? | | ??????????????# #?????????????????????? | | ??????????????# #?????????????????????? | | ??????######### """ """ #?????????????????????? | | ??????# / """ """ #?????????????????????? | | ??????# ####### """ """ #?????????????????????? | | ??????# #?????# ??????????????????????? | | ??????# #?????# """ """ ??????????????????????? | | ??????# #?????#! """ """ ??????????????????????? | | ??????# #?????# """ ""????????????????????????? | | ??????# #?????# ????????????????????????? | | ??????# #?????# ??????????????????????????? | | ??????# #?????##########?????????????????????????? | | ??????# #????????????????????????????????????????? | | ??????# #????????????????????????????????????????? | +----------------------------------------------------+ Best States ------------- Heat Dissipation 34 Energy Generation 5 Energy Capacity 100 Matter Stores 300 Matter Capacity 300 Sight Range 16 Terrain Scan Density 210 Evasion (%) 62 Authchip Count 2 Item Schematics ----------------- None Robot Schematics ------------------ None Fabricated ------------ Nothing Alien Tech Used ----------------- None Achievements -------------- None Challenges ------------ None Game ------ Seed KineticHybridMapper Manual? 0 Play Time 00:07:47 Cumulative 213.6 hours Start 2023.05.15 @ 21:53:06 End 2023.05.15 @ 21:58:33 Sessions 1 Manual Loads 0 Difficulty Rogue Special Mode None Game No. 626 Rogue 626 Adventurer 0 Explorer 0 Win Type - Total 9 Types 7/0/1/1/0/0/0/0/0 Lore% 82 Gallery% 80 Achievement% 71 Wizard Run 0 Options --------- ASCII 0 Keyboard 0 Movement Numpad Keybinds 0 Fullscreen 1 Font 16/SmallcapsGlow Map View 75x55 Tactical HUD 1 Map Filters NONE Filters NONE Steam 1 RUN: 4a965b52-92a5-4912-acba-9a13f60e9e9a